fUSD/lending_fUSD_20250608
["ID","MTS","AMOUNT","RATE_DAILY","PERIOD"]
[365041809,1749421846566,-150.0,0.00018926,2]
[365041811,1749421846575,-150.0,0.00018926,2]
[365041813,1749421846584,-150.0,0.00018932,2]
[365041815,1749421846594,-150.0,0.00018933,2]
[365041817,1749421846603,-6908.71712544,0.00018934,2]
[365041819,1749421846612,-244.544592,0.00018935,2]
[365041821,1749421846622,-300.0,0.00018944,2]
[365041823,1749421846631,-420.0,0.00018944,2]
[365041825,1749421846642,-150.0,0.00018948,2]
[365041826,1749421846651,-213.0,0.0001895,2]
[365041828,1749421846660,-150.0,0.00018953,2]
[365041830,1749421846670,-150.0,0.0001896,2]
[365041832,1749421846679,-150.0,0.0001897,2]
[365041834,1749421846688,-150.0,0.00018973,2]
[365041836,1749421846697,-600.0,0.00018975,4]
[365041838,1749421846707,-150.0,0.00018975,2]
[365041840,1749421846716,-150.37736635,0.00018977,2]
[365041842,1749421846726,-158.04838008,0.00018977,2]
[365041844,1749421846735,-150.0,0.00018988,2]
[365041846,1749421846744,-150.0,0.00018988,2]
[365041848,1749421846753,-150.0,0.00018992,2]
[365041850,1749421846763,-250.0,0.00019,2]
[365041852,1749421846772,-16000.0,0.00019,2]
[365041854,1749421846782,-150.0,0.00019002,2]
[365041856,1749421846791,-150.0,0.00019005,2]
[365041858,1749421846802,-400.0,0.00019011,2]
[365041860,1749421846811,-150.0,0.00019014,2]
[365041862,1749421846820,-150.0,0.00019015,2]
[365041864,1749421846830,-150.0,0.00019017,2]
[365041865,1749421846839,-150.0,0.00019019,2]
[365041867,1749421846848,-150.0,0.00019034,2]
[365041869,1749421846857,-150.0,0.00019036,2]
[365041871,1749421846867,-1680.0,0.00019037,2]
[365041873,1749421846876,-150.0,0.00019038,2]
[365041875,1749421846886,-150.0,0.00019041,2]
[365041877,1749421846895,-150.0,0.00019045,2]
[365041879,1749421846904,-150.0,0.00019051,2]
[365041881,1749421846913,-150.0,0.00019058,2]
[365041883,1749421846922,-150.0,0.00019061,2]
[365041885,1749421846931,-150.0,0.00019073,2]
[365041887,1749421846940,-150.0,0.00019073,2]
[365041889,1749421846950,-150.0,0.00019079,2]
[365041891,1749421846959,-480.0,0.00019084,2]
[365041893,1749421846968,-667.35,0.00019084,2]
[365041895,1749421846978,-219.38056132,0.00019084,2]
[365041897,1749421846991,-260.61943868,0.00019084,2]
[365041899,1749421846999,-480.0,0.00019084,2]
[365041901,1749421847008,-989.5,0.00019084,2]
[365041903,1749421847018,-502.88,0.00019084,2]
[365041905,1749421847027,-480.0,0.00019084,2]
[365041907,1749421847037,-4443.83,0.00019084,2]
[365041909,1749421847048,-693.98,0.00019084,2]
[365041911,1749421847057,-5743.04416267,0.00019084,2]
[365041913,1749421847069,-5177.13583733,0.00019084,2]
[365041915,1749421847078,-480.0,0.00019084,2]
[365041917,1749421847088,-480.0,0.00019084,2]
[365041919,1749421847097,-1014.15,0.00019084,2]
[365041921,1749421847107,-726.82,0.00019084,2]
[365041923,1749421847115,-812.65,0.00019084,2]
[365041925,1749421847125,-480.0,0.00019084,2]
[365041927,1749421847134,-985.27,0.00019084,2]
[365041929,1749421847143,-480.0,0.00019084,2]
[365041931,1749421847153,-480.0,0.00019084,2]
[365041933,1749421847164,-624.15,0.00019084,2]
[365041935,1749421847174,-150.0,0.00019101,2]
[365041937,1749421847183,-150.0,0.00019101,2]
[365041939,1749421847192,-150.37736635,0.00019109,2]
[365041941,1749421847203,-150.0,0.0001911,2]
[365041943,1749421847212,-150.0,0.00019121,2]
[365041945,1749421847222,-150.0,0.00019123,2]
[365041947,1749421847231,-150.0,0.00019125,2]
[365041949,1749421847241,-3159.20446632,0.00019128,2]
[365041951,1749421847253,-3749.51265912,0.00019128,2]
[365041953,1749421847263,-150.0,0.00019129,2]
[365041955,1749421847272,-1235.83679638,0.00019141,2]
[365041957,1749421847283,-2202.86655458,0.00019141,2]
[365041959,1749421847295,-788.000002,0.00019141,2]
[365042171,1749422483113,265.52,0.00013699,2]
[365042173,1749422542920,682.47,0.00015815,2]
[365042186,1749423031875,-183.38,0.00017596,2]
[365042187,1749423031885,-165.59,0.00017647,2]
[365042188,1749423031894,-1000.0,0.0001768,2]
[365042189,1749423031903,-300.0,0.00017713,2]
[365042190,1749423031913,-1200.0,0.00017713,2]
[365042191,1749423031923,-23900.0,0.00017714,2]
[365042192,1749423031932,-150.0,0.00017776,7]
[365042193,1749423031941,-200.0,0.00017842,2]
[365042194,1749423031950,-207.0,0.00017876,2]
[365042195,1749423031959,-6409.51338942,0.000179,2]
[365042196,1749423031968,-207.4,0.00017987,2]
[365042197,1749423031977,-1984.1007,0.00017998,2]
[365042198,1749423031988,-628.47,0.00018,2]
[365042199,1749423031997,-682.47,0.00018079,2]
[365042200,1749423032008,-176.76,0.00018086,2]
[365042201,1749423032018,-500.0,0.00018097,2]
[365042202,1749423032027,-480.0,0.00018097,2]
[365042203,1749423032037,-480.0,0.00018097,2]
[365042204,1749423032046,-480.0,0.00018097,2]
[365042205,1749423032056,-1164.0,0.00018148,2]
[365042206,1749423032065,-944.0,0.00018148,2]
[365042207,1749423032074,-6409.51338935,0.00018176,2]
[365042208,1749423032083,-556.33641606,0.00018262,2]
[365042209,1749423032092,-151.0,0.00018414,2]
[365042210,1749423032102,-500.0,0.00018414,2]
[365042211,1749423032111,-500.0,0.00018449,2]
[365042212,1749423032120,-500.0,0.00018449,2]
[365042213,1749423032130,-500.0,0.00018449,2]
[365042214,1749423032139,-500.0,0.00018449,2]
[365042215,1749423032149,-500.0,0.00018449,2]
[365042216,1749423032159,-500.0,0.00018449,2]
[365042217,1749423032168,-611.53539115,0.00018449,2]
[365042218,1749423032178,-500.0,0.00018449,2]
[365042219,1749423032187,-500.0,0.00018449,2]
[365042220,1749423032196,-500.0,0.00018449,2]
[365042221,1749423032205,-567.77743237,0.00018449,2]
[365042222,1749423032214,-500.0,0.00018449,2]
[365042223,1749423032223,-500.0,0.00018449,2]
[365042224,1749423032231,-500.0,0.00018449,2]
[365042225,1749423032241,-364.18140278,0.00018449,2]
[365042226,1749423032250,-4716.97187559,0.00018452,2]
[365042228,1749423032262,-1692.54151376,0.00018452,2]
[365042229,1749423032270,-395.78388949,0.00018728,2]
[365042230,1749423032285,-724.11652513,0.00018728,2]
[365042231,1749423032296,-5289.61297473,0.00018728,2]
[365042232,1749423032305,-500.0,0.00018754,2]
[365042233,1749423032314,-157.064657,0.00018776,2]
[365042235,1749423032323,-311.76129542,0.000188,2]
[365042237,1749423032332,-321.84,0.00018873,2]
[365042239,1749423032342,-600.0,0.000189,6]
[365042241,1749423032351,-2089.2799365,0.00019,2]
[365042244,1749423032367,-3466.9925743,0.00019,2]
[365042246,1749423032377,-2729.8716691,0.00019,2]
[365042248,1749423032388,-454.92529219,0.00019,2]
[365042250,1749423032399,-476.47053834,0.00019,2]
[365042252,1749423032410,-348.06306179,0.00019,2]
[365042254,1749423032421,-529.42,0.00019,2]
[365042256,1749423032432,-339.17912446,0.00019,2]
[365042258,1749423032443,-5565.79780332,0.00019,2]
[365042260,1749423032452,-250.0,0.00019,2]
[365042262,1749423032461,-1000.0,0.00019,2]
[365042264,1749423032470,-150.37736635,0.00019,2]
[365042266,1749423032479,-6409.51338935,0.00019003,2]
[365042268,1749423032489,-4648.91972098,0.00019021,2]
[365042270,1749423032500,-1063.44509394,0.00019021,2]
[365042272,1749423032515,-600.56056441,0.00019021,2]
[365042275,1749423032692,-1327.70118,0.00019021,2]
[365042299,1749423032945,-2514.02094636,0.00019021,2]
[365042301,1749423032955,-500.0,0.00019073,2]
[365042303,1749423032964,-500.0,0.00019073,2]
[365042304,1749423032973,-500.0,0.00019073,2]
[365042306,1749423032982,-500.0,0.00019073,2]
[365042308,1749423032991,-500.0,0.00019073,2]
[365042310,1749423033001,-500.0,0.00019073,2]
[365042312,1749423033010,-1531.13,0.0001909,2]
[365042314,1749423033019,-515.99810499,0.00019099,2]
[365042316,1749423033028,-343.39996701,0.00019099,2]
[365042318,1749423033037,-464.05326605,0.00019099,2]
[365042320,1749423033047,-480.0,0.00019099,2]
[365042322,1749423033056,-480.0,0.00019099,2]
[365042324,1749423033065,-480.0,0.00019099,2]
[365042326,1749423033075,-700.9,0.00019099,2]
[365042328,1749423033084,-3147.71,0.00019099,2]
[365042330,1749423033093,-575.62,0.00019099,2]
[365042332,1749423033102,-480.0,0.00019099,2]
[365042334,1749423033111,-732.21,0.00019099,2]
[365042336,1749423033120,-7735.13,0.00019099,2]
[365042337,1749423033129,-491.57,0.00019099,2]
[365042339,1749423033139,-198.50993725,0.00019099,2]
[365042341,1749423033148,-480.0,0.00019099,2]
[365042343,1749423033157,-514.83,0.00019099,2]
[365042345,1749423033166,-480.0,0.00019099,2]
[365042347,1749423033175,-480.0,0.00019099,2]
[365042349,1749423033184,-480.0,0.00019099,2]
[365042351,1749423033193,-697.9,0.00019099,2]
[365042353,1749423033203,-480.0,0.00019099,2]
[365042355,1749423033212,-480.0,0.00019099,2]
[365042357,1749423033220,-480.0,0.00019099,2]
[365042359,1749423033230,-8589.35921781,0.000191,2]
[365042364,1749423033274,-1886.38084821,0.000191,2]
[365042366,1749423033285,-559.46319352,0.000191,2]
[365042368,1749423033296,-539.30050583,0.000191,2]
[365042370,1749423033307,-429.9480008,0.000191,2]
[365042459,1749423037804,-400.0,0.00018148,2]
[365042460,1749423037867,-279.934,0.00018148,2]
[365042461,1749423037876,-480.0,0.00019099,2]
[365042462,1749423037886,-9840.066,0.000191,2]
[365042463,1749423038091,-8718.18503368,0.000191,2]
[365042464,1749423038156,-1030.41952595,0.000191,2]
[365042465,1749423038168,-3842.25183477,0.000191,2]
[365042660,1749423040381,-265.90160437,0.00018148,2]
[365043011,1749423046092,-299.59717966,0.00018148,2]
[365043012,1749423046446,-286.50121597,0.00018148,2]
[365043013,1749423046455,-340.86415915,0.00018448,2]
[365043014,1749423046465,-373.79793364,0.00018448,2]
[365043015,1749423046476,-480.0,0.00019099,2]
[365043016,1749423046487,-655.43669124,0.000191,2]
[365043020,1749423131619,203.0,0.00016876,2]
[365043023,1749423250691,-179.330082,0.00017158,2]
[365043024,1749423251718,210.00002,0.00016876,2]
[365043030,1749423470856,260.59,0.00013699,2]
[365043035,1749423830911,715.02,0.00015768,2]
[365043037,1749423878787,7680.06079,0.0001705,2]
[365043041,1749424211516,203.0,0.00016272,2]
[365043044,1749424232125,-799.66,0.00017177,2]
[365043045,1749424232134,-183.38,0.0001732,2]
[365043046,1749424232143,-200.0,0.00017373,2]
[365043047,1749424232153,-160.56918306,0.000174,2]
[365043048,1749424232162,-187.15,0.00017408,2]
[365043049,1749424232171,-250.0,0.00017408,2]
[365043050,1749424232180,-2511.71,0.00017426,2]
[365043051,1749424232190,-600.0,0.00017575,4]
[365043052,1749424232201,-1105.88976736,0.00017739,2]
[365043053,1749424232210,-1000.0,0.00017842,2]
[365043054,1749424232219,-1001.64104958,0.00017865,2]
[365043055,1749424232231,-198.35895042,0.00017865,2]
[365043056,1749424232240,-300.0,0.00017867,2]
[365043057,1749424232250,-5853.14966958,0.00017868,2]
[365043058,1749424232261,-18046.85033042,0.00017868,2]
[365043059,1749424232271,-5529.60537102,0.000179,2]
[365043060,1749424232280,-353.79,0.00017964,2]
[365043061,1749424232289,-550.0,0.00017975,2]
[365043062,1749424232298,-17042.84,0.00017976,2]
[365043063,1749424232307,-150.0,0.00017992,7]
[365043064,1749424232319,-565.62,0.00018,2]
[365043065,1749424232328,-150.0,0.00018004,2]
[365043066,1749424232337,-1433.6,0.0001802,2]
[365043067,1749424232346,-207.4,0.0001802,2]
[365043068,1749424232358,-715.02,0.00018032,2]
[365043069,1749424232367,-7017.0,0.00018074,2]
[365043070,1749424232376,-4081.0,0.00018074,2]
[365043071,1749424232386,-5529.60537088,0.00018141,2]
[365043072,1749424232394,-150.0,0.00018148,2]
[365043073,1749424232403,-166.36,0.00018202,2]
[365043074,1749424232412,-188.9,0.0001825,2]
[365043075,1749424232421,-866.61648709,0.00018383,2]
[365043076,1749424232432,-1133.24290978,0.00018383,2]
[365043077,1749424232443,-456.7858882,0.00018383,2]
[365043078,1749424232455,-600.0,0.00018383,2]
[365043079,1749424232467,-617.9141118,0.00018383,2]
[365043080,1749424232478,-752.0,0.00018383,2]
[365043081,1749424232493,-155.0,0.00018074,2]
[365043082,1749424232504,-195.0,0.00018383,2]
[365044156,1749424243219,-908.04597401,0.00018383,2]
[365044158,1749424243228,-9139.18275513,0.00018433,2]
[365044160,1749424243239,-150.37736635,0.00018433,2]
[365044162,1749424243248,-151.0,0.00018522,2]
[365044164,1749424243259,-239.39390451,0.00018532,2]
[365044166,1749424243271,-121.80476898,0.00018532,2]
[365044168,1749424243280,-213.85523052,0.00018533,2]
[365044179,1749424243379,-266.14476948,0.00018533,2]
[365044181,1749424243392,-326.90815521,0.00018533,2]
[365044183,1749424243402,-273.58329131,0.00018533,2]
[365044479,1749424246256,-219.79670869,0.00018533,2]
[365044480,1749424246266,-125.23303436,0.00018533,2]
[365044499,1749424271391,206.0,0.00016272,2]
[365044500,1749424723041,150.0,0.00017052,2]
[365044502,1749424791344,263.09,0.00013699,2]
[365044503,1749424834210,734.22,0.00015537,2]
[365044504,1749424931959,203.0,0.00016844,2]
[365044505,1749425110653,259.49143841,0.000154,2]
[365044506,1749425120043,4012.53751898,9e-05,2]
[365044507,1749425125910,245.93512888,0.000108,2]
[365044508,1749425136793,2446.38051852,9e-05,2]
[365044509,1749425155469,22563.5639123,6.94e-05,2]
[365044510,1749425162746,15122.26279018,8e-05,2]
[365044511,1749425167302,6539.9601016,0.0001,2]
[365044513,1749425190915,1988.12338205,0.00015,2]
[365044514,1749425236472,959.95798579,0.00015,2]
[365044515,1749425239124,205.0,9.8e-05,2]
[365044516,1749425243239,252.56123784,0.000101,2]
[365044533,1749425432393,-150.0,0.00017122,7]
[365044534,1749425432402,-149.66054039,0.00017131,2]
[365044535,1749425432414,-16.29945961,0.00017131,2]
[365044536,1749425432424,-200.0,0.00017172,2]
[365044537,1749425432433,-250.0,0.00017299,2]
[365044538,1749425432443,-294.82,0.00017302,2]
[365044539,1749425432452,-200.0,0.00017394,2]
[365044540,1749425432461,-1000.0,0.0001747,2]
[365044541,1749425432470,-180.0,0.00017491,2]
[365044542,1749425432480,-1200.0,0.00017491,2]
[365044543,1749425432489,-4658.88054039,0.00017492,2]
[365044544,1749425432500,-771.42883945,0.00017492,2]
[365044545,1749425432511,-13987.00370802,0.00017492,2]
[365044546,1749425432524,-4482.68691214,0.00017492,2]
[365044547,1749425432533,-734.22,0.00017801,2]
[365044548,1749425432542,-8371.6751453,0.0001793,2]
[365044549,1749425432551,-150.37736635,0.0001793,2]
[365044550,1749425432561,-176.76,0.00017948,2]
[365044551,1749425432571,-550.0,0.00017999,2]
[365044552,1749425432580,-509.06,0.00018,2]
[365044553,1749425432589,-1154.66,0.00018,2]
[365044554,1749425432598,-11460.13753404,0.00018,2]
[365044981,1749425440449,-624.35176361,0.00018,2]
[365044992,1749425440550,-342.12070235,0.00018,2]
[365044994,1749425440560,-150.99,0.00018,2]
[365044996,1749425440570,-10487.54620962,0.00018,2]
[365044998,1749425440580,-6860.13720337,0.00018,2]
[365045000,1749425440590,-9999.99,0.00018009,2]
[365045002,1749425440600,-9999.99,0.00018009,2]
[365045004,1749425440609,-150.99,0.00018009,2]
[365045006,1749425440619,-999.99,0.00018009,2]
[365045008,1749425440628,-499.99,0.00018009,2]
[365045010,1749425440637,-1000.0,0.0001802,2]
[365045011,1749425440648,-500.0,0.0001802,2]
[365045013,1749425440658,-518.5,0.0001802,2]
[365045015,1749425440667,-243.27842834,0.0001802,2]
[365045017,1749425440677,-500.0,0.0001802,2]
[365045019,1749425440686,-463.83983015,0.0001802,2]
[365045021,1749425440699,-500.0,0.0001802,2]
[365045023,1749425440709,-151.0,0.0001802,2]
[365045025,1749425440719,-500.0,0.0001802,2]
[365045027,1749425440728,-151.0,0.0001802,2]
[365045029,1749425440738,-633.26835985,0.0001802,2]
[365045031,1749425440747,-256.4583895,0.0001802,2]
[365045033,1749425440756,-207.4,0.0001802,2]
[365045035,1749425440766,-252.83907145,0.00018029,2]
[365045037,1749425440776,-263.8627656,0.0001803,2]
[365045039,1749425440787,-55734.26983109,0.0001803,2]
[365045041,1749425440797,-273.330658,0.0001803,2]
[365045043,1749425440806,-151.0,0.0001803,2]
[365045045,1749425440815,-151.0,0.0001803,2]
[365045047,1749425440825,-151.0,0.0001803,2]
[365045049,1749425440835,-53259.97,0.0001803,2]
[365045051,1749425440845,-9999.99,0.0001803,2]
[365045053,1749425440854,-166.36,0.00018048,2]
[365045055,1749425440863,-8371.67514523,0.00018149,2]
[365045057,1749425440873,-557.0,0.00018222,2]
[365045059,1749425440882,-438.533,0.00018222,2]
[365045061,1749425440892,-944.0,0.00018222,2]
[365045063,1749425440901,-228.17560124,0.00018231,2]
[365045065,1749425440911,-1435.44905191,0.00018232,2]
[365045067,1749425440921,-1489.13500001,0.0001835,2]
[365045069,1749425440930,-8371.67514523,0.00018368,2]
[365045071,1749425440940,-151.0,0.00018368,2]
[365045073,1749425440949,-151.0,0.00018368,2]
[365045075,1749425440959,-151.0,0.00018368,2]
[365045077,1749425440969,-429.8049,0.00018433,2]
[365045079,1749425440978,-151.0,0.00018452,2]
[365045081,1749425440987,-1435.41,0.000185,2]
[365045083,1749425440997,-480.0,0.00018521,2]
[365045085,1749425441006,-480.0,0.00018521,2]
[365045087,1749425441015,-480.0,0.00018521,2]
[365045088,1749425441025,-727.51,0.00018521,2]
[365045090,1749425441034,-663.6,0.00018521,2]
[365045092,1749425441044,-480.0,0.00018521,2]
[365045094,1749425441054,-216.701922,0.00018522,2]
[365045096,1749425441063,-216.701922,0.00018522,2]
[365045098,1749425441072,-382.78,0.00018522,2]
[365045100,1749425441081,-500.0,0.00018532,2]
[365045102,1749425441091,-671.69,0.00018532,2]
[365045104,1749425441100,-726.95,0.00018532,2]
[365045106,1749425441110,-3051.56,0.00018532,2]
[365045108,1749425441120,-524.16,0.00018532,2]
[365045110,1749425441129,-486.42,0.00018532,2]
[365045112,1749425441138,-7615.28,0.00018532,2]
[365045114,1749425441148,-517.44,0.00018532,2]
[365045116,1749425441157,-597.35,0.00018532,2]
[365045118,1749425441166,-340.52119859,0.00018532,2]
[365045120,1749425441175,-701.71,0.00018532,2]
[365045121,1749425441185,-480.0,0.00018532,2]
[365045122,1749425441194,-480.0,0.00018532,2]
[365045124,1749425441204,-480.0,0.00018532,2]
[365045125,1749425441213,-480.0,0.00018532,2]
[365045126,1749425441223,-1766.62,0.00018532,2]
[365045128,1749425441232,-2396.23,0.00018532,2]
[365045129,1749425441241,-480.0,0.00018532,2]
[365045130,1749425441251,-2764.63,0.00018532,2]
[365045131,1749425441261,-480.0,0.00018532,2]
[365045132,1749425441271,-480.0,0.00018532,2]
[365045133,1749425441280,-3777.34,0.00018532,2]
[365045134,1749425441290,-480.0,0.00018532,2]
[365045135,1749425441299,-202.72855968,0.00018532,2]
[365045136,1749425441309,-480.0,0.00018532,2]
[365045137,1749425441318,-480.0,0.00018532,2]
[365045138,1749425441327,-205.51,0.00018532,2]
[365045139,1749425441336,-480.0,0.00018532,2]
[365045140,1749425441346,-480.0,0.00018532,2]
[365045141,1749425441356,-480.0,0.00018532,2]
[365045142,1749425441366,-480.0,0.00018532,2]
[365045143,1749425441379,-480.0,0.00018532,2]
[365045144,1749425441390,-480.0,0.00018532,2]
[365045145,1749425441400,-226.58627731,0.00018532,2]
[365045146,1749425441409,-480.0,0.00018532,2]
[365045147,1749425441419,-480.0,0.00018532,2]
[365045148,1749425441428,-480.0,0.00018532,2]
[365045149,1749425441438,-480.0,0.00018532,2]
[365045150,1749425441447,-480.0,0.00018533,2]
[365045151,1749425441456,-1194.38,0.00018533,2]
[365045152,1749425441466,-604.14,0.00018533,2]
[365045153,1749425441475,-693.04,0.00018533,2]
[365045154,1749425441484,-480.0,0.00018533,2]
[365045155,1749425441493,-808.23,0.00018533,2]
[365045156,1749425441503,-480.0,0.00018533,2]
[365045157,1749425441515,-480.0,0.00018533,2]
[365045158,1749425441525,-480.0,0.00018533,2]
[365045159,1749425441534,-480.0,0.00018533,2]
[365045160,1749425441544,-480.0,0.00018533,2]
[365045161,1749425441555,-480.0,0.00018533,2]
[365045162,1749425441564,-480.0,0.00018533,2]
[365045163,1749425441573,-480.0,0.00018533,2]
[365045164,1749425441583,-480.0,0.00018533,2]
[365045165,1749425441592,-480.0,0.00018533,2]
[365045166,1749425441602,-480.0,0.00018533,2]
[365045167,1749425441612,-480.0,0.00018533,2]
[365045168,1749425441624,-151.0,0.00018533,2]
[365045169,1749425441634,-216.701922,0.00018533,2]
[365045170,1749425441643,-216.701922,0.00018533,2]
[365045171,1749425441653,-151.0,0.00018533,2]
[365045172,1749425441663,-151.0,0.00018533,2]
[365045173,1749425441674,-151.0,0.00018533,2]
[365045174,1749425441684,-15705.37,0.00018533,2]
[365045175,1749425441698,-204.0,0.00018542,2]
[365045176,1749425441707,-300.0,0.00018546,2]
[365045177,1749425441717,-1435.41,0.00018561,2]
[365045178,1749425441727,-150.37736635,0.00018583,2]
[365045179,1749425441737,-8371.67514523,0.00018587,2]
[365045180,1749425441747,-162.00695799,0.00018596,2]
[365045181,1749425441757,-2824.29885023,0.00018596,2]
[365045182,1749425441768,-480.0,0.00018686,2]
[365045183,1749425441778,-360.0,0.00018686,2]
[365045184,1749425441787,-404.62,0.00018686,2]
[365045185,1749425441797,-727.51,0.00018686,2]
[365045186,1749425441806,-663.6,0.00018686,2]
[365045187,1749425441816,-268.81602832,0.00018686,2]
[365045188,1749425441825,-823.4,0.00018696,2]
[365045189,1749425441835,-480.0,0.00018696,2]
[365045190,1749425441844,-480.0,0.00018696,2]
[365045191,1749425441855,-480.0,0.00018696,2]
[365045192,1749425441864,-480.0,0.00018696,2]
[365045193,1749425441875,-912.18,0.00018696,2]
[365045194,1749425441884,-480.0,0.00018696,2]
[365045195,1749425441895,-480.0,0.00018696,2]
[365045196,1749425441904,-772.25,0.00018696,2]
[365045197,1749425441914,-480.0,0.00018696,2]
[365045198,1749425441925,-480.0,0.00018696,2]
[365045199,1749425441935,-549.28,0.00018696,2]
[365045200,1749425441945,-480.0,0.00018696,2]
[365045201,1749425441955,-480.0,0.00018696,2]
[365045202,1749425441964,-480.0,0.00018696,2]
[365045203,1749425441974,-480.0,0.00018696,2]
[365045204,1749425441983,-811.78,0.00018696,2]
[365045205,1749425441992,-1522.77,0.00018696,2]
[365045206,1749425442002,-500.0,0.00018696,2]
[365045207,1749425442012,-633.17,0.00018696,2]
[365045208,1749425442021,-260.0,0.00018696,2]
[365045209,1749425442031,-480.0,0.00018696,2]
[365045210,1749425442041,-595.66,0.00018696,2]
[365045211,1749425442050,-496.53,0.00018696,2]
[365045212,1749425442060,-480.0,0.00018696,2]
[365045213,1749425442069,-615.22133624,0.00018696,2]
[365045214,1749425442078,-480.0,0.00018696,2]
[365045215,1749425442088,-480.0,0.00018696,2]
[365045216,1749425442097,-480.0,0.00018696,2]
[365045217,1749425442106,-621.64863033,0.00018696,2]
[365045218,1749425442116,-480.0,0.00018696,2]
[365045219,1749425442126,-480.0,0.00018696,2]
[365045220,1749425442136,-480.0,0.00018696,2]
[365045221,1749425442145,-480.0,0.00018696,2]
[365045222,1749425442155,-480.0,0.00018696,2]
[365045223,1749425442164,-480.0,0.00018696,2]
[365045224,1749425442174,-480.0,0.00018696,2]
[365045225,1749425442183,-480.0,0.00018696,2]
[365045226,1749425442193,-480.0,0.00018696,2]
[365045227,1749425442202,-480.0,0.00018696,2]
[365045228,1749425442212,-480.0,0.00018696,2]
[365045229,1749425442221,-480.0,0.00018696,2]
[365045230,1749425442231,-722.96,0.00018696,2]
[365045231,1749425442240,-480.0,0.00018696,2]
[365045232,1749425442249,-480.0,0.00018696,2]
[365045233,1749425442260,-480.0,0.00018696,2]
[365045234,1749425442270,-480.0,0.00018696,2]
[365045235,1749425442280,-480.0,0.00018696,2]
[365045236,1749425442289,-480.0,0.00018696,2]
[365045237,1749425442298,-480.0,0.00018696,2]
[365045238,1749425442307,-480.0,0.00018696,2]
[365045239,1749425442317,-480.0,0.00018696,2]
[365045240,1749425442327,-480.0,0.00018696,2]
[365045241,1749425442336,-480.0,0.00018696,2]
[365045242,1749425442345,-480.0,0.00018696,2]
[365045243,1749425442354,-480.0,0.00018696,2]
[365045244,1749425442363,-480.0,0.00018696,2]
[365045245,1749425442372,-480.0,0.00018696,2]
[365045246,1749425442382,-480.0,0.00018696,2]
[365045247,1749425442392,-480.0,0.00018696,2]
[365045248,1749425442402,-480.0,0.00018696,2]
[365045249,1749425442411,-480.0,0.00018696,2]
[365045250,1749425442420,-480.0,0.00018696,2]
[365045251,1749425442430,-480.0,0.00018696,2]
[365045252,1749425442439,-423.30265511,0.00018696,2]
[365045253,1749425442448,-480.0,0.00018696,2]
[365045254,1749425442458,-522.6404286,0.00018696,2]
[365045255,1749425442467,-480.0,0.00018696,2]
[365045256,1749425442476,-480.0,0.00018696,2]
[365045257,1749425442485,-480.0,0.00018696,2]
[365045258,1749425442495,-480.0,0.00018696,2]
[365045259,1749425442504,-480.0,0.00018696,2]
[365045260,1749425442514,-311.32846351,0.00018696,2]
[365045261,1749425442523,-480.0,0.00018696,2]
[365045262,1749425442532,-480.0,0.00018696,2]
[365045263,1749425442542,-677.07,0.00018696,2]